[Event "Titled Tuesday Blitz February 07 Early 2023"]
[White "Wagh Suyog"]
[Black "Daneshvar, Bardiya"]
[WhiteFideId "25071688"]
[BlackFideId "12576468"]
[WhiteElo "2313"]
[BlackElo "2540"]
[Result "1/2-1/2"]
[Round "03"]
[TimeControl "180+2"]
[Date "2023.02.07"]
[WhiteClock "0:00:14"]
[BlackClock "0:00:15"]

1. d4 {[%clk 0:03:00]}  Nf6 {[%clk 0:02:58]} 2. c4 {[%clk 0:03:01]}  Nc6 {[%clk 0:02:57]} 3. Nf3 {[%clk 0:02:59]}  g6 {[%clk 0:02:56]} 4. g3 {[%clk 0:02:59]}  Bg7 {[%clk 0:02:56]} 5. Bg2 {[%clk 0:02:59]}  O-O {[%clk 0:02:56]} 6. O-O {[%clk 0:03:00]}  d5 {[%clk 0:02:57]} 7. cxd5 {[%clk 0:03:00]}  Nxd5 {[%clk 0:02:58]} 8. e4 {[%clk 0:03:00]}  Nb6 {[%clk 0:02:58]} 9. d5 {[%clk 0:03:01]}  Na5 {[%clk 0:02:58]} 10. Nc3 {[%clk 0:03:01]}  c6 {[%clk 0:02:56]} 11. dxc6 {[%clk 0:02:44]}  Nxc6 {[%clk 0:02:54]} 12. Qc2 {[%clk 0:02:38]}  Bg4 {[%clk 0:02:51]} 13. Be3 {[%clk 0:02:20]}  Nc4 {[%clk 0:02:47]} 14. Qe2 {[%clk 0:02:16]}  Nxe3 {[%clk 0:02:37]} 15. Qxe3 {[%clk 0:02:15]}  Bxf3 {[%clk 0:02:32]} 16. Bxf3 {[%clk 0:02:14]}  e6 {[%clk 0:02:29]} 17. Rfd1 {[%clk 0:02:08]}  Qe7 {[%clk 0:02:28]} 18. Rd2 {[%clk 0:02:04]}  Rad8 {[%clk 0:02:23]} 19. Rad1 {[%clk 0:01:59]}  a6 {[%clk 0:02:20]} 20. Qb6 {[%clk 0:01:56]}  Rxd2 {[%clk 0:02:14]} 21. Rxd2 {[%clk 0:01:56]}  Bxc3 {[%clk 0:02:03]} 22. bxc3 {[%clk 0:01:56]}  Ne5 {[%clk 0:02:01]} 23. Be2 {[%clk 0:01:55]}  Rc8 {[%clk 0:02:00]} 24. Qb4 {[%clk 0:01:43]}  Qc7 {[%clk 0:01:50]} 25. f4 {[%clk 0:01:28]}  Nc6 {[%clk 0:01:47]} 26. Qc5 {[%clk 0:01:27]}  b6 {[%clk 0:01:37]} 27. Qe3 {[%clk 0:01:21]}  b5 {[%clk 0:01:34]} 28. c4 {[%clk 0:01:11]}  bxc4 {[%clk 0:01:27]} 29. Bxc4 {[%clk 0:01:11]}  Nb4 {[%clk 0:01:28]} 30. Bf1 {[%clk 0:01:06]}  Qc3 {[%clk 0:01:20]} 31. Qxc3 {[%clk 0:00:58]}  Rxc3 {[%clk 0:01:21]} 32. Rd8+ {[%clk 0:00:44]}  Kg7 {[%clk 0:01:20]} 33. Rb8 {[%clk 0:00:43]}  a5 {[%clk 0:01:13]} 34. a4 {[%clk 0:00:43]}  Rc1 {[%clk 0:01:03]} 35. Kf2 {[%clk 0:00:43]}  Rc2+ {[%clk 0:01:02]} 36. Kg1 {[%clk 0:00:43]}  Ra2 {[%clk 0:01:02]} 37. Bb5 {[%clk 0:00:43]}  Nc2 {[%clk 0:00:59]} 38. Rb7 {[%clk 0:00:40]}  Nd4 {[%clk 0:00:48]} 39. Be8 {[%clk 0:00:33]}  Kf8 {[%clk 0:00:40]} 40. Bxf7 {[%clk 0:00:27]}  Rxa4 {[%clk 0:00:40]} 41. Kf2 {[%clk 0:00:24]}  Ra3 {[%clk 0:00:36]} 42. Rd7 {[%clk 0:00:21]}  Ra2+ {[%clk 0:00:32]} 43. Ke3 {[%clk 0:00:19]}  Nc2+ {[%clk 0:00:33]} 44. Kd3 {[%clk 0:00:19]}  Nb4+ {[%clk 0:00:33]} 45. Kc4 {[%clk 0:00:18]}  Re2 {[%clk 0:00:21]} 46. e5 {[%clk 0:00:15]}  Rc2+ {[%clk 0:00:19]} 47. Kb5 {[%clk 0:00:15]}  Nd5 {[%clk 0:00:19]} 48. Kxa5 {[%clk 0:00:12]}  Rc7 {[%clk 0:00:07]} 49. Bxe6 {[%clk 0:00:10]}  Rc5+ {[%clk 0:00:08]} 50. Ka6 {[%clk 0:00:09]}  Nc7+ {[%clk 0:00:08]} 51. Kb6 {[%clk 0:00:06]}  Nxe6 {[%clk 0:00:07]} 52. Rd6 {[%clk 0:00:06]}  Rc2 {[%clk 0:00:07]} 53. Rxe6 {[%clk 0:00:07]}  Rxh2 {[%clk 0:00:08]} 54. Rf6+ {[%clk 0:00:04]}  Ke7 {[%clk 0:00:08]} 55. Rc6 {[%clk 0:00:05]}  Rg2 {[%clk 0:00:08]} 56. Rc7+ {[%clk 0:00:05]}  Ke6 {[%clk 0:00:08]} 57. Rxh7 {[%clk 0:00:05]}  Rxg3 {[%clk 0:00:09]} 58. Rg7 {[%clk 0:00:05]}  Rg4 {[%clk 0:00:09]} 59. Kc5 {[%clk 0:00:05]}  Rxf4 {[%clk 0:00:06]} 60. Rxg6+ {[%clk 0:00:05]}  Kxe5 {[%clk 0:00:07]} 61. Rg5+ {[%clk 0:00:05]}  Kf6 {[%clk 0:00:06]} 62. Rg1 {[%clk 0:00:05]}  Ra4 {[%clk 0:00:06]} 63. Kb5 {[%clk 0:00:06]}  Rf4 {[%clk 0:00:05]} 64. Kc5 {[%clk 0:00:06]}  Rf5+ {[%clk 0:00:06]} 65. Kc4 {[%clk 0:00:06]}  Rh5 {[%clk 0:00:07]} 66. Kd3 {[%clk 0:00:07]}  Ke5 {[%clk 0:00:07]} 67. Ke3 {[%clk 0:00:07]}  Rh3+ {[%clk 0:00:07]} 68. Kf2 {[%clk 0:00:07]}  Ra3 {[%clk 0:00:08]} 69. Rg3 {[%clk 0:00:07]}  Ra2+ {[%clk 0:00:08]} 70. Kf3 {[%clk 0:00:08]}  Kf5 {[%clk 0:00:09]} 71. Rg1 {[%clk 0:00:08]}  Ra3+ {[%clk 0:00:09]} 72. Kf2 {[%clk 0:00:08]}  Kf4 {[%clk 0:00:10]} 73. Rd1 {[%clk 0:00:07]}  Ra2+ {[%clk 0:00:10]} 74. Kf1 {[%clk 0:00:07]}  Ke3 {[%clk 0:00:10]} 75. Re1+ {[%clk 0:00:08]}  Kf3 {[%clk 0:00:10]} 76. Rb1 {[%clk 0:00:08]}  Ra3 {[%clk 0:00:11]} 77. Ke1 {[%clk 0:00:08]}  Rd3 {[%clk 0:00:10]} 78. Rd1 {[%clk 0:00:07]}  Re3+ {[%clk 0:00:11]} 79. Kd2 {[%clk 0:00:08]}  Re2+ {[%clk 0:00:12]} 80. Kd3 {[%clk 0:00:08]}  Rf2 {[%clk 0:00:12]} 81. Rd2 {[%clk 0:00:08]}  Rf1 {[%clk 0:00:13]} 82. Rb2 {[%clk 0:00:08]}  Ra1 {[%clk 0:00:12]} 83. Rc2 {[%clk 0:00:08]}  Kf4 {[%clk 0:00:11]} 84. Rf2+ {[%clk 0:00:08]}  Ke5 {[%clk 0:00:12]} 85. Re2+ {[%clk 0:00:05]}  Kd5 {[%clk 0:00:12]} 86. Ke3 {[%clk 0:00:05]}  Ra3+ {[%clk 0:00:11]} 87. Kf4 {[%clk 0:00:05]}  Ra4+ {[%clk 0:00:12]} 88. Kf5 {[%clk 0:00:05]}  Ra8 {[%clk 0:00:13]} 89. Rd2+ {[%clk 0:00:06]}  Kc4 {[%clk 0:00:14]} 90. Rc2+ {[%clk 0:00:06]}  Kd3 {[%clk 0:00:15]} 91. Rc7 {[%clk 0:00:06]}  Rf8+ {[%clk 0:00:16]} 92. Ke6 {[%clk 0:00:07]}  Rf1 {[%clk 0:00:17]} 93. Re7 {[%clk 0:00:08]}  Re1+ {[%clk 0:00:18]} 94. Kd6 {[%clk 0:00:08]}  Rh1 {[%clk 0:00:18]} 95. Re6 {[%clk 0:00:08]}  Kd4 {[%clk 0:00:19]} 96. Rg6 {[%clk 0:00:09]}  Ra1 {[%clk 0:00:18]} 97. Rg4+ {[%clk 0:00:09]}  Ke3 {[%clk 0:00:18]} 98. Rg3+ {[%clk 0:00:09]}  Kf4 {[%clk 0:00:19]} 99. Rb3 {[%clk 0:00:10]}  Ra6+ {[%clk 0:00:18]} 100. Kd5 {[%clk 0:00:10]}  Rh6 {[%clk 0:00:19]} 101. Rb4+ {[%clk 0:00:10]}  Ke3 {[%clk 0:00:20]} 102. Rb3+ {[%clk 0:00:11]}  Kd2 {[%clk 0:00:20]} 103. Rb2+ {[%clk 0:00:11]}  Kd3 {[%clk 0:00:21]} 104. Rb3+ {[%clk 0:00:12]}  Kc2 {[%clk 0:00:21]} 105. Rg3 {[%clk 0:00:12]}  Rh2 {[%clk 0:00:14]} 106. Ke4 {[%clk 0:00:12]}  Rh8 {[%clk 0:00:15]} 107. Kd5 {[%clk 0:00:12]}  Rd8+ {[%clk 0:00:14]} 108. Kc4 {[%clk 0:00:13]}  Rc8+ {[%clk 0:00:14]} 109. Kd4 {[%clk 0:00:13]}  Rd8+ {[%clk 0:00:14]} 110. Ke4 {[%clk 0:00:14]}  Re8+ {[%clk 0:00:15]} 1/2-1/2


[Site "https://www.chess.com"]

[Event "Titled Tuesday Blitz February 07 Early 2023"]
[White "Terry, Renato"]
[Black "Tan, Zhongyi"]
[WhiteFideId "3803457"]
[BlackFideId "8603642"]
[WhiteElo "2520"]
[BlackElo "2517"]
[Result "1-0"]
[Round "03"]
[TimeControl "180+2"]
[Date "2023.02.07"]
[WhiteClock "0:00:11"]
[BlackClock "0:00:21"]

1. Nf3 {[%clk 0:03:00]}  c5 {[%clk 0:02:59]} 2. b3 {[%clk 0:03:00]}  d5 {[%clk 0:02:58]} 3. Bb2 {[%clk 0:03:00]}  f6 {[%clk 0:02:55]} 4. c4 {[%clk 0:02:52]}  d4 {[%clk 0:02:53]} 5. b4 {[%clk 0:02:48]}  e5 {[%clk 0:02:53]} 6. bxc5 {[%clk 0:02:49]}  Bxc5 {[%clk 0:02:51]} 7. d3 {[%clk 0:02:49]}  Nc6 {[%clk 0:02:49]} 8. g3 {[%clk 0:02:48]}  Nh6 {[%clk 0:02:43]} 9. Bg2 {[%clk 0:02:48]}  O-O {[%clk 0:02:43]} 10. Nbd2 {[%clk 0:02:47]}  Be6 {[%clk 0:02:34]} 11. O-O {[%clk 0:02:42]}  Qd7 {[%clk 0:02:33]} 12. Nb3 {[%clk 0:02:32]}  Be7 {[%clk 0:02:33]} 13. a4 {[%clk 0:02:32]}  a5 {[%clk 0:02:22]} 14. Nfd2 {[%clk 0:02:20]}  Bh3 {[%clk 0:02:18]} 15. Bd5+ {[%clk 0:02:18]}  Kh8 {[%clk 0:02:17]} 16. Re1 {[%clk 0:02:18]}  Nb4 {[%clk 0:02:13]} 17. Bh1 {[%clk 0:02:17]}  f5 {[%clk 0:02:09]} 18. Nf3 {[%clk 0:02:12]}  Bf6 {[%clk 0:01:59]} 19. Ba3 {[%clk 0:01:39]}  Ng4 {[%clk 0:01:58]} 20. Nxa5 {[%clk 0:01:36]}  e4 {[%clk 0:01:44]} 21. Bxb4 {[%clk 0:01:34]}  Rfe8 {[%clk 0:01:31]} 22. dxe4 {[%clk 0:01:05]}  fxe4 {[%clk 0:01:32]} 23. e3 {[%clk 0:01:01]}  dxe3 {[%clk 0:01:24]} 24. fxe3 {[%clk 0:00:59]}  exf3 {[%clk 0:01:19]} 25. Bxf3 {[%clk 0:00:57]}  Ne5 {[%clk 0:01:16]} 26. Bg2 {[%clk 0:00:28]}  Nd3 {[%clk 0:01:14]} 27. Bxh3 {[%clk 0:00:27]}  Qxh3 {[%clk 0:01:07]} 28. Qxd3 {[%clk 0:00:27]}  Bxa1 {[%clk 0:01:06]} 29. Rxa1 {[%clk 0:00:28]}  Rad8 {[%clk 0:01:03]} 30. Qe2 {[%clk 0:00:27]}  Re5 {[%clk 0:00:48]} 31. Nxb7 {[%clk 0:00:20]}  Rde8 {[%clk 0:00:47]} 32. Nd6 {[%clk 0:00:20]}  Rxe3 {[%clk 0:00:47]} 33. Qf1 {[%clk 0:00:17]}  Rxg3+ {[%clk 0:00:37]} 34. hxg3 {[%clk 0:00:18]}  Qxg3+ {[%clk 0:00:37]} 35. Qg2 {[%clk 0:00:17]}  Qe3+ {[%clk 0:00:37]} 36. Qf2 {[%clk 0:00:15]}  Qg5+ {[%clk 0:00:37]} 37. Kf1 {[%clk 0:00:14]}  Qh5 {[%clk 0:00:24]} 38. Nxe8 {[%clk 0:00:11]}  Qh1+ {[%clk 0:00:24]} 39. Ke2 {[%clk 0:00:11]}  Qe4+ {[%clk 0:00:23]} 40. Kd2 {[%clk 0:00:11]}  h6 {[%clk 0:00:21]} 41. Qf8+ {[%clk 0:00:11]} 1-0


[Site "https://www.chess.com"]

[Event "Titled Tuesday Blitz February 07 Early 2023"]
[White "Indjic, Aleksandar"]
[Black "Costachi, Mihnea"]
[WhiteFideId "911925"]
[BlackFideId "1217518"]
[WhiteElo "2618"]
[BlackElo "2476"]
[Result "1-0"]
[Round "03"]
[TimeControl "180+2"]
[Date "2023.02.07"]
[WhiteClock "0:00:59"]
[BlackClock "0:00:14"]

1. e4 {[%clk 0:03:00]}  e5 {[%clk 0:02:59]} 2. Nf3 {[%clk 0:03:00]}  Nf6 {[%clk 0:03:00]} 3. Nc3 {[%clk 0:02:59]}  Nc6 {[%clk 0:02:59]} 4. d4 {[%clk 0:02:59]}  exd4 {[%clk 0:02:59]} 5. Nxd4 {[%clk 0:03:00]}  Bb4 {[%clk 0:03:00]} 6. Nxc6 {[%clk 0:03:00]}  bxc6 {[%clk 0:03:00]} 7. Bd3 {[%clk 0:03:00]}  d5 {[%clk 0:03:00]} 8. exd5 {[%clk 0:02:59]}  cxd5 {[%clk 0:03:01]} 9. O-O {[%clk 0:02:59]}  O-O {[%clk 0:03:01]} 10. h3 {[%clk 0:02:59]}  h6 {[%clk 0:02:58]} 11. Qf3 {[%clk 0:02:59]}  c6 {[%clk 0:02:58]} 12. Bf4 {[%clk 0:02:58]}  Bd6 {[%clk 0:02:58]} 13. Rfe1 {[%clk 0:02:56]}  Rb8 {[%clk 0:02:55]} 14. b3 {[%clk 0:02:55]}  Rb4 {[%clk 0:02:53]} 15. Bxd6 {[%clk 0:02:52]}  Qxd6 {[%clk 0:02:53]} 16. Na4 {[%clk 0:02:50]}  c5 {[%clk 0:02:36]} 17. c4 {[%clk 0:02:38]}  d4 {[%clk 0:02:30]} 18. Qg3 {[%clk 0:02:36]}  Qc6 {[%clk 0:02:07]} 19. Re5 {[%clk 0:02:33]}  Nd7 {[%clk 0:02:01]} 20. Rd5 {[%clk 0:02:07]}  Re8 {[%clk 0:01:33]} 21. Rd6 {[%clk 0:02:04]}  Qc7 {[%clk 0:01:21]} 22. Re6 {[%clk 0:02:02]}  Qd8 {[%clk 0:01:18]} 23. Rxh6 {[%clk 0:01:58]}  Ne5 {[%clk 0:01:09]} 24. Nxc5 {[%clk 0:01:55]}  Rb6 {[%clk 0:00:52]} 25. Rxb6 {[%clk 0:01:21]}  axb6 {[%clk 0:00:52]} 26. Na4 {[%clk 0:01:22]}  Bb7 {[%clk 0:00:52]} 27. Nb2 {[%clk 0:01:14]}  Qe7 {[%clk 0:00:41]} 28. Rd1 {[%clk 0:01:10]}  Qa3 {[%clk 0:00:32]} 29. Na4 {[%clk 0:01:08]}  Qxa2 {[%clk 0:00:26]} 30. Nxb6 {[%clk 0:01:03]}  Qxb3 {[%clk 0:00:25]} 31. Bh7+ {[%clk 0:01:02]}  Kxh7 {[%clk 0:00:24]} 32. Qxb3 {[%clk 0:01:02]}  d3 {[%clk 0:00:22]} 33. Nd5 {[%clk 0:01:01]}  Bc6 {[%clk 0:00:19]} 34. f4 {[%clk 0:01:00]}  Ng6 {[%clk 0:00:19]} 35. Qxd3 {[%clk 0:01:00]}  Rd8 {[%clk 0:00:17]} 36. f5 {[%clk 0:00:59]}  Nf4 {[%clk 0:00:14]} 37. Qe4 {[%clk 0:00:59]}  Nxd5 {[%clk 0:00:13]} 38. cxd5 {[%clk 0:00:58]}  Ba8 {[%clk 0:00:13]} 39. f6+ {[%clk 0:00:59]}  g6 {[%clk 0:00:13]} 40. Qh4+ {[%clk 0:00:59]}  Kg8 {[%clk 0:00:14]} 41. Qh6 {[%clk 0:00:59]} 1-0


[Site "https://www.chess.com"]

[Event "Titled Tuesday Blitz February 07 Early 2023"]
[White "Sokolovsky, Yahli"]
[Black "Zierk, Steven"]
[WhiteFideId "2820242"]
[BlackFideId "2034255"]
[WhiteElo "2461"]
[BlackElo "2488"]
[Result "0-1"]
[Round "03"]
[TimeControl "180+2"]
[Date "2023.02.07"]
[WhiteClock "0:00:38"]
[BlackClock "0:02:02"]

1. b3 {[%clk 0:03:00]}  e6 {[%clk 0:02:55]} 2. Bb2 {[%clk 0:03:00]}  f5 {[%clk 0:02:55]} 3. e3 {[%clk 0:03:00]}  Nf6 {[%clk 0:02:55]} 4. Nf3 {[%clk 0:03:01]}  d5 {[%clk 0:02:54]} 5. d4 {[%clk 0:02:52]}  Bd6 {[%clk 0:02:54]} 6. Ne5 {[%clk 0:02:52]}  Qe7 {[%clk 0:02:51]} 7. Nd2 {[%clk 0:02:51]}  O-O {[%clk 0:02:45]} 8. Ndf3 {[%clk 0:02:51]}  Ne4 {[%clk 0:02:41]} 9. Bd3 {[%clk 0:02:38]}  Bb4+ {[%clk 0:02:39]} 10. Kf1 {[%clk 0:02:27]}  Nd7 {[%clk 0:02:39]} 11. Nxd7 {[%clk 0:02:00]}  Bxd7 {[%clk 0:02:40]} 12. Qc1 {[%clk 0:02:01]}  Be8 {[%clk 0:02:29]} 13. c3 {[%clk 0:01:48]}  Bd6 {[%clk 0:02:28]} 14. a4 {[%clk 0:01:45]}  Bh5 {[%clk 0:02:24]} 15. Nd2 {[%clk 0:01:41]}  Qh4 {[%clk 0:02:18]} 16. Qe1 {[%clk 0:01:40]}  f4 {[%clk 0:02:13]} 17. Nxe4 {[%clk 0:00:46]}  dxe4 {[%clk 0:02:07]} 18. Bxe4 {[%clk 0:00:47]}  f3 {[%clk 0:02:03]} 19. Bxf3 {[%clk 0:00:37]}  Rxf3 {[%clk 0:02:02]} 20. gxf3 {[%clk 0:00:38]}  Bxf3 {[%clk 0:02:02]} 0-1


[Site "https://www.chess.com"]

[Event "Titled Tuesday Blitz February 07 Early 2023"]
[White "Sjugirov, Sanan"]
[Black "Oro, Faustino"]
[WhiteFideId "4189302"]
[BlackFideId "20000197"]
[WhiteElo "2712"]
[BlackElo "2269"]
[Result "1-0"]
[Round "03"]
[TimeControl "180+2"]
[Date "2023.02.07"]
[WhiteClock "0:00:11"]
[BlackClock "0:00:13"]

1. d4 {[%clk 0:03:00]}  Nf6 {[%clk 0:03:00]} 2. c4 {[%clk 0:03:01]}  e6 {[%clk 0:03:00]} 3. Nf3 {[%clk 0:03:01]}  b6 {[%clk 0:02:57]} 4. g3 {[%clk 0:03:00]}  Bb7 {[%clk 0:02:57]} 5. Bg2 {[%clk 0:03:00]}  Be7 {[%clk 0:02:58]} 6. O-O {[%clk 0:03:00]}  O-O {[%clk 0:02:59]} 7. Nc3 {[%clk 0:03:01]}  Ne4 {[%clk 0:02:59]} 8. Bd2 {[%clk 0:03:01]}  d6 {[%clk 0:02:54]} 9. Qc2 {[%clk 0:02:43]}  Nxc3 {[%clk 0:02:40]} 10. Bxc3 {[%clk 0:02:41]}  f5 {[%clk 0:02:12]} 11. Ne1 {[%clk 0:02:22]}  Bxg2 {[%clk 0:02:11]} 12. Nxg2 {[%clk 0:02:23]}  Nd7 {[%clk 0:01:31]} 13. Nf4 {[%clk 0:02:21]}  Rf6 {[%clk 0:01:24]} 14. e4 {[%clk 0:02:12]}  e5 {[%clk 0:01:05]} 15. dxe5 {[%clk 0:02:04]}  Nxe5 {[%clk 0:01:00]} 16. Bxe5 {[%clk 0:02:03]}  dxe5 {[%clk 0:01:01]} 17. Nd5 {[%clk 0:02:04]}  Rf8 {[%clk 0:01:01]} 18. exf5 {[%clk 0:02:00]}  Bc5 {[%clk 0:01:01]} 19. Rad1 {[%clk 0:01:45]}  Bd4 {[%clk 0:01:00]} 20. Nc3 {[%clk 0:01:40]}  Qf6 {[%clk 0:00:58]} 21. Nb5 {[%clk 0:01:37]}  c5 {[%clk 0:00:54]} 22. Nc7 {[%clk 0:01:24]}  Rac8 {[%clk 0:00:45]} 23. Nd5 {[%clk 0:01:24]}  Qf7 {[%clk 0:00:45]} 24. Kg2 {[%clk 0:01:20]}  Rce8 {[%clk 0:00:45]} 25. g4 {[%clk 0:01:08]}  h5 {[%clk 0:00:35]} 26. h3 {[%clk 0:01:07]}  g6 {[%clk 0:00:29]} 27. f6 {[%clk 0:01:00]}  e4 {[%clk 0:00:28]} 28. g5 {[%clk 0:00:57]}  Qe6 {[%clk 0:00:25]} 29. f4 {[%clk 0:00:31]}  exf3+ {[%clk 0:00:22]} 30. Rxf3 {[%clk 0:00:30]}  Rf7 {[%clk 0:00:21]} 31. Qxg6+ {[%clk 0:00:27]}  Kf8 {[%clk 0:00:21]} 32. Rdf1 {[%clk 0:00:12]}  Qe2+ {[%clk 0:00:20]} 33. R1f2 {[%clk 0:00:13]}  Bxf2 {[%clk 0:00:20]} 34. Rxf2 {[%clk 0:00:14]}  Qe4+ {[%clk 0:00:19]} 35. Qxe4 {[%clk 0:00:14]}  Rxe4 {[%clk 0:00:20]} 36. b3 {[%clk 0:00:14]}  Re5 {[%clk 0:00:20]} 37. h4 {[%clk 0:00:14]}  Re4 {[%clk 0:00:20]} 38. Kh3 {[%clk 0:00:14]}  Rg4 {[%clk 0:00:19]} 39. Re2 {[%clk 0:00:13]}  Rd7 {[%clk 0:00:18]} 40. Re6 {[%clk 0:00:09]}  Rd4 {[%clk 0:00:18]} 41. g6 {[%clk 0:00:09]}  Rg4 {[%clk 0:00:18]} 42. g7+ {[%clk 0:00:08]}  Kf7 {[%clk 0:00:19]} 43. Re7+ {[%clk 0:00:07]}  Rxe7 {[%clk 0:00:19]} 44. Nxe7 {[%clk 0:00:08]}  Rg1 {[%clk 0:00:13]} 45. a4 {[%clk 0:00:06]}  a5 {[%clk 0:00:13]} 46. g8=Q+ {[%clk 0:00:03]}  Rxg8 {[%clk 0:00:13]} 47. Nxg8 {[%clk 0:00:04]}  Kxg8 {[%clk 0:00:14]} 48. Kg3 {[%clk 0:00:04]}  Kf7 {[%clk 0:00:14]} 49. Kf3 {[%clk 0:00:04]}  Kxf6 {[%clk 0:00:15]} 50. Kf4 {[%clk 0:00:04]}  Ke6 {[%clk 0:00:07]} 51. Kg5 {[%clk 0:00:05]}  Ke5 {[%clk 0:00:07]} 52. Kxh5 {[%clk 0:00:05]}  Kd4 {[%clk 0:00:08]} 53. Kg5 {[%clk 0:00:06]}  Kc3 {[%clk 0:00:09]} 54. h5 {[%clk 0:00:07]}  Kxb3 {[%clk 0:00:10]} 55. h6 {[%clk 0:00:08]}  Kxa4 {[%clk 0:00:11]} 56. h7 {[%clk 0:00:08]}  Kb4 {[%clk 0:00:12]} 57. h8=Q {[%clk 0:00:09]}  Kxc4 {[%clk 0:00:13]} 58. Kf4 {[%clk 0:00:09]}  b5 {[%clk 0:00:13]} 59. Ke3 {[%clk 0:00:09]}  b4 {[%clk 0:00:14]} 60. Kd2 {[%clk 0:00:10]}  a4 {[%clk 0:00:14]} 61. Kc2 {[%clk 0:00:10]}  a3 {[%clk 0:00:13]} 62. Qg8+ {[%clk 0:00:10]}  Kb5 {[%clk 0:00:13]} 63. Kb3 {[%clk 0:00:11]} 1-0


[Site "https://www.chess.com"]

[Event "Titled Tuesday Blitz February 07 Early 2023"]
[White "Assaubayeva, Bibisara"]
[Black "Madaminov, Mukhiddin"]
[WhiteFideId "13708694"]
[BlackFideId "14210703"]
[WhiteElo "2464"]
[BlackElo "2422"]
[Result "1-0"]
[Round "03"]
[TimeControl "180+2"]
[Date "2023.02.07"]
[WhiteClock "0:00:20"]
[BlackClock "0:00:20"]

1. e4 {[%clk 0:02:57]}  e5 {[%clk 0:02:59]} 2. Nf3 {[%clk 0:02:54]}  Nc6 {[%clk 0:03:00]} 3. Bc4 {[%clk 0:02:54]}  Nf6 {[%clk 0:02:59]} 4. d3 {[%clk 0:02:53]}  h6 {[%clk 0:02:59]} 5. O-O {[%clk 0:02:50]}  d6 {[%clk 0:02:56]} 6. a4 {[%clk 0:02:49]}  g6 {[%clk 0:02:55]} 7. a5 {[%clk 0:02:49]}  Bg7 {[%clk 0:02:55]} 8. a6 {[%clk 0:02:47]}  b6 {[%clk 0:02:52]} 9. Bb5 {[%clk 0:02:47]}  Bd7 {[%clk 0:02:51]} 10. c4 {[%clk 0:02:47]}  O-O {[%clk 0:02:48]} 11. Nc3 {[%clk 0:02:47]}  Nb4 {[%clk 0:02:48]} 12. Ra4 {[%clk 0:02:43]}  c5 {[%clk 0:02:32]} 13. b3 {[%clk 0:02:40]}  Kh7 {[%clk 0:02:18]} 14. Ba3 {[%clk 0:02:39]}  Nc6 {[%clk 0:02:18]} 15. b4 {[%clk 0:02:37]}  Nd4 {[%clk 0:01:54]} 16. Bxd7 {[%clk 0:02:28]}  Qxd7 {[%clk 0:01:41]} 17. b5 {[%clk 0:02:24]}  Nh5 {[%clk 0:01:39]} 18. Nxd4 {[%clk 0:02:19]}  exd4 {[%clk 0:01:37]} 19. Nd5 {[%clk 0:02:19]}  f5 {[%clk 0:01:36]} 20. Bc1 {[%clk 0:02:01]}  fxe4 {[%clk 0:01:32]} 21. dxe4 {[%clk 0:02:02]}  Rae8 {[%clk 0:01:32]} 22. Qd3 {[%clk 0:01:55]}  Nf6 {[%clk 0:01:28]} 23. Nxf6+ {[%clk 0:01:53]}  Rxf6 {[%clk 0:01:27]} 24. Ra2 {[%clk 0:01:54]}  h5 {[%clk 0:01:12]} 25. Re2 {[%clk 0:01:54]}  Bh6 {[%clk 0:01:12]} 26. Bxh6 {[%clk 0:01:50]}  Kxh6 {[%clk 0:01:12]} 27. f4 {[%clk 0:01:51]}  Qf7 {[%clk 0:01:10]} 28. g3 {[%clk 0:01:50]}  Kh7 {[%clk 0:01:10]} 29. Kg2 {[%clk 0:01:50]}  Re7 {[%clk 0:01:09]} 30. Rfe1 {[%clk 0:01:49]}  Rfe6 {[%clk 0:01:07]} 31. h4 {[%clk 0:01:49]}  Qe8 {[%clk 0:01:05]} 32. Kf3 {[%clk 0:01:46]}  Qa8 {[%clk 0:01:05]} 33. Kf2 {[%clk 0:01:45]}  Kg7 {[%clk 0:01:04]} 34. Qf3 {[%clk 0:01:44]}  Qf8 {[%clk 0:01:02]} 35. Kg2 {[%clk 0:01:42]}  Rf6 {[%clk 0:01:01]} 36. Qd3 {[%clk 0:01:38]}  Rfe6 {[%clk 0:01:01]} 37. Qf3 {[%clk 0:01:35]}  Qf7 {[%clk 0:01:01]} 38. Qd3 {[%clk 0:01:33]}  Rf6 {[%clk 0:00:49]} 39. Kg1 {[%clk 0:01:25]}  Qe8 {[%clk 0:00:48]} 40. Kg2 {[%clk 0:01:24]}  Qd7 {[%clk 0:00:47]} 41. Qf3 {[%clk 0:01:22]}  Qe6 {[%clk 0:00:44]} 42. Qd3 {[%clk 0:01:18]}  Qg4 {[%clk 0:00:42]} 43. Rf2 {[%clk 0:01:17]}  Rfe6 {[%clk 0:00:35]} 44. Ree2 {[%clk 0:00:53]}  Re8 {[%clk 0:00:34]} 45. Re1 {[%clk 0:00:50]}  R6e7 {[%clk 0:00:34]} 46. Rfe2 {[%clk 0:00:43]}  Rf8 {[%clk 0:00:34]} 47. Rf2 {[%clk 0:00:43]}  Rfe8 {[%clk 0:00:34]} 48. Rfe2 {[%clk 0:00:43]}  Kh7 {[%clk 0:00:32]} 49. Rf2 {[%clk 0:00:41]}  Rf8 {[%clk 0:00:32]} 50. Ree2 {[%clk 0:00:37]}  Qd7 {[%clk 0:00:30]} 51. f5 {[%clk 0:00:32]}  gxf5 {[%clk 0:00:24]} 52. exf5 {[%clk 0:00:29]}  Rxe2 {[%clk 0:00:25]} 53. Qxe2 {[%clk 0:00:23]}  Rxf5 {[%clk 0:00:19]} 54. Qe4 {[%clk 0:00:21]}  Kg6 {[%clk 0:00:20]} 55. g4 {[%clk 0:00:20]}  hxg4 {[%clk 0:00:20]} 56. Qxg4+ {[%clk 0:00:20]}  Kf6 {[%clk 0:00:20]} 57. Qg5+ {[%clk 0:00:20]}  Ke5 {[%clk 0:00:20]} 58. Re2# {[%clk 0:00:20]} 1-0


[Site "https://www.chess.com"]